{"text_format":"1","workbook":"xlsx","n_sheets":2,"sheets":["kalkulačka_výpočet_přelom","měsíc"],"not_rendered":{"charts":0,"images":2,"macros":1,"external_links":0,"defined_names":21,"comments":0,"pivot_tables":0},"unopened":[],"bounds":{"document_bytes":16777216,"sheet_cells":100000,"rows_first":2000,"rows_last":500,"rows_between":2000,"halvings":0,"cell_chars":16384,"cell_head_chars":4096},"cells_cut":0,"cells_raw":0,"read":"whole","date_system":"1900"}

{"sheet":"kalkulačka_výpočet_přelom","index":0,"n_rows":32,"n_cols":17,"rows_kept":32,"cut":false,"hidden":false,"merged":[[14,11,15,14],[13,1,13,6],[1,9,1,11],[3,15,3,16],[3,17,4,17],[4,15,4,16],[5,1,5,6],[31,1,32,11],[35,15,35,16],[19,1,19,8],[20,15,20,16],[21,15,21,16],[24,15,24,16],[25,1,26,11],[25,15,25,16],[26,15,27,16]]}
[]
[null,"Výpočet mimořádného příspěvku zaměstnanci při nařízené karanténě ",null,null,null,null,null,null,null,"Vložit údaje do bílých políček"]
[null,null,null,null,null,null,null,null,null,"březen","celé období","březen"]
[null,"Počet kalendářních dnů v karanténě",null,null,null,null,null,null,null,2,{"$f":"J4+L4","v":14},12,null,null,null,"Příspěvěk při karanténě (\"izolačka\")"]
[null,"Počet hodin, které by zaměstnanec odpracoval v době karantény ",null,null,null,null,null,null,null,33,{"$f":"J5+L5","v":56},23,null,null,null,{"$f":"_izolačka_celé_období_vážený_průměr","v":2498}]
[null,"Průměrný hodinový výdělek",null,null,null,null,null,null,null,124,{"$f":"IFERROR(SUMPRODUCT(_hodiny_březen*_mzda_březen+_hodiny_duben*_mzda_duben)/SUM(_hodiny_březen+_hodiny_duben),0)","v":124},124,null,null,null,{"$f":"J3","v":"březen"},{"$f":"L3","v":"březen"}]
[null,"Redukce PHV",null,null,null,null,null,null,null,null,null,null,null,null,null,{"$f":"_brezen_výše_příspěvku_na_karanténu","v":740},{"$f":"_izolačka_celé_období_vážený_průměr-_brezen_výše_příspěvku_na_karanténu","v":1758}]
[null,null,null," do",206.85,null,"redukce na",0.9,"tj. na",{"$f":"ROUND($H8*MIN(J$6,$E8),2)","v":111.6},{"$f":"ROUND($H8*MIN(K$6,$E8),2)","v":111.6},{"$f":"ROUND($H8*MIN(L$6,$E8),2)","v":111.6}]
[null,"nad",{"$f":"+E8","v":206.85},"do ",310.27999999999997,null,"redukce na",0.6,"tj. na",{"$f":"ROUND($H$9*IF(J$6>C9,MIN(J$6,$C$10)-$C$9,0),2)","v":0},{"$f":"ROUND($H$9*IF(K$6>C9,MIN(K$6,$C$10)-$C$9,0),2)","v":0},{"$f":"ROUND($H$9*IF(L$6>C9,MIN(L$6,$C$10)-$C$9,0),2)","v":0}]
[null,"nad",{"$f":"+E9","v":310.27999999999997},"do ",620.38,null,"redukce na",0.3,"tj. na",{"$f":"ROUND($H$10*IF(J$6>$C$10,MIN(J$6,$C$11)-$C$10,0),2)","v":0},{"$f":"ROUND($H$10*IF(K$6>$C$10,MIN(K$6,$C$11)-$C$10,0),2)","v":0},{"$f":"ROUND($H$10*IF(L$6>$C$10,MIN(L$6,$C$11)-$C$10,0),2)","v":0}]
[null,"nad",{"$f":"+E10","v":620.38},"nezohledňuje se"]
[null,null,null,null,null,null,null,null,null,{"$f":"+J8+J9+J10","v":111.6},{"$f":"+K8+K9+K10","v":111.6},{"$f":"+L8+L9+L10","v":111.6}]
[null,null,"Výpočet náhrady mzdy za ",null,"hodin",0.6,null,null,null,{"$f":"ROUND((J$12*$F$13),2)*J$5","v":2209.6799999999998},{"$f":"ROUND((K$12*$F$13),2)*K$5","v":3749.7599999999998},{"$f":"ROUND((L$12*$F$13),2)*L$5","v":1540.08}]
[null,"Náhrada mzdy (60 % z redukovaného průměru) za dobu karantény",null,null,null,null,null,null,null,{"$f":"CEILING(J13,1)","v":2210},{"$f":"_nahrada_mzdy_60_za_březen+_nahrada_mzdy_60_za_duben","v":3751},{"$f":"CEILING(L13,1)","v":1541},null,null,null,{"$f":"P7","v":740},{"$f":"Q7","v":1758}]
[null,"90 % průměrného výdělku za dobu karantény",null,null,null,null,null,null,null,{"$f":"0.9*_mzda_březen*_hodiny_březen","v":3682.8},{"$f":"0.9*_vážený_průměr_průměrná_hodinová_mzda_celé_období_karantnény*K5","v":6249.6}]
[null,"Maximální výše příspěvku při karanténě (370 Kč za den)",null,null,null,null,null,null,null,{"$f":"IF(J4>14,14*370,J4*370)","v":740},{"$f":"IF(K4>14,14*370,K4*370)","v":5180}]
[null,null,null,null,null,null,null,null,"kontrolní výpočet - součet náhrady mzdy a maximálního příspěvku ",{"$f":"_březen_příspěvek_na_karanténu_370_Kč_za_den+_nahrada_mzdy_60_za_březen","v":2950},{"$f":"K16+K14","v":8931}]
[null,"Případné snížení příspěvku**",null,null,null,null,null,null,null,{"$f":"IF((_březen_90_průměrné_mzdy_za_dobu_karantény-_nahrada_mzdy_60_za_březen-_březen_příspěvek_na_karanténu_370_Kč_za_den)<0,(_březen_90_průměrné_mzdy_za_dobu_karantény-_nahrada_mzdy_60_za_březen-_březen_příspěvek_na_karanténu_370_Kč_za_den)*1,(_březen_90_průměrné_mzdy_za_dobu_karantény-_nahrada_mzdy_60_za_březen-_březen_příspěvek_na_karanténu_370_Kč_za_den)*0)","v":0},{"$f":"IF((K15-K14-K16)<0,(K15-K14-K16)*1,(K15-K14-K16)*0)","v":-2681.3999999999996}]
[null,"Součet náhrady mzdy a příspěvku při karanténě ",null,null,null,null,null,null,null,{"$f":"FLOOR(_nahrada_mzdy_60_za_březen+_březen_příspěvek_na_karanténu_370_Kč_za_den+_březen_případné_snížení_příspěvku,1)","v":2950},{"$f":"FLOOR(_nahrada_mzdy_60_za_období_karantény_pomocí_váženého_průměru+_celé_období_příspěvek_karanténa+_celé_období_případné_snížení_příspěvku,1)","v":6249},{"$f":"_celková_náhrada_v_době_karantény-_březen_Součet_náhrady_mzdy_a_příspěvku_při_karanténě","v":3299}]
[null,"výše příspěvku na karanténu",null,null,null,null,null,null,null,{"$f":"FLOOR(_provizorni_prispevek_brezen-brezen_60_reduk_prum_karantena,1)","v":740},{"$f":"FLOOR(_celková_náhrada_v_době_karantény-_nahrada_mzdy_60_za_období_karantény_pomocí_váženého_průměru,1)","v":2498},{"$f":"FLOOR(_izolačka_celé_období_vážený_průměr-_brezen_výše_příspěvku_na_karanténu,1)","v":1758}]
[null,"Tzv. izolačka = příspěvek při karanténě",null,null,null,null,null,null,null,null,{"$f":"_izolačka_celé_období_vážený_průměr","v":2498},null,null,null,null,"Běžná náhrada mzdy"]
[null,null,null,null,null,null,null,null,null,null,null,null,null,null,null,{"$f":"Q24+P24","v":3751}]
[null,"Součet náhrady mzdy a příspěvku při karanténě *",null,null,null,null,null,null,null,null,{"$f":"_celková_náhrada_v_době_karantény","v":6249},null,null,null,null,{"$f":"J3","v":"březen"},{"$f":"L3","v":"březen"}]
[null,null,null,null,null,null,null,null,null,null,null,null,null,null,null,{"$f":"_nahrada_mzdy_60_za_březen","v":2210},{"$f":"_nahrada_mzdy_60_za_duben","v":1541}]
[]
[null,"*Příspěvek při karanténě v součtu s náhradou příjmu dle zákoníku práce nesmí být vyšší než 90 % průměrného výdělku. V souvislosti s tím se pro účely výplaty  náhrada příjmu zaokrouhluje na celé koruny nahoru a příspěvek při karanténě na celé koruny dolů.",null,null,null,null,null,null,null,null,null,null,null,null,null,"celková náhrada v době karantény"]
[null,null,null,null,null,null,null,null,null,null,null,null,null,null,null,{"$f":"_celková_náhrada_v_době_karantény","v":6249}]
[null,"Orientační výpočet hodinové mzdy **"]
[null,"Výše měsíční mzdy",null,25000,null,null,null,null,null,null,null,null,null,null,null,{"$f":"J3","v":"březen"},{"$f":"L3","v":"březen"}]
[null,"Výše úvazku",null,1,null,null,null,null,null,null,null,null,null,null,null,{"$f":"_březen_Součet_náhrady_mzdy_a_příspěvku_při_karanténě","v":2950},{"$f":"_duben_náhrady_mzdy_a_příspěvku_při_karanténě","v":3299}]
[null,"Hodinová mzda",null,{"$f":"D29/(4.348*40*D30)","v":143.7442502299908}]
[null,"** Slouží pouze pro získání přibližné představy o výši hodinové mzdy pro určitou výši měsíční mzdy. Do kalkulátoru je třeba zadat průměrný hodinový výdělek konkrétního zaměstnance spočítaný podle zákoníku práce."]

{"sheet":"měsíc","index":1,"n_rows":13,"n_cols":1,"rows_kept":13,"cut":false,"hidden":true,"merged":[]}
["měsíc"]
["leden"]
["únor"]
["březen"]
["duben"]
["květen"]
["červen"]
["červenec"]
["srpen"]
["září"]
["říjen"]
["listopad"]
["prosinec"]